fUSD/lending_fUSD_20250119
["ID","MTS","AMOUNT","RATE_DAILY","PERIOD"]
[349563116,1737297035647,-500.0,0.00019725,2]
[349563117,1737297035658,-500.0,0.00019725,2]
[349563118,1737297035668,-500.0,0.00019725,2]
[349563119,1737297035679,-500.0,0.00019725,2]
[349563120,1737297035690,-500.0,0.00019725,2]
[349563121,1737297035701,-500.0,0.00019725,2]
[349563122,1737297035711,-500.0,0.00019725,2]
[349563123,1737297035720,-500.0,0.00019725,2]
[349563124,1737297035732,-500.0,0.00019725,2]
[349563125,1737297035743,-500.0,0.00019725,2]
[349563126,1737297035979,-500.0,0.00019725,2]
[349563127,1737297035990,-500.0,0.00019725,2]
[349563128,1737297036000,-503.08285058,0.00019725,2]
[349563129,1737297036010,-500.0,0.00019725,2]
[349563130,1737297036020,-500.0,0.00019725,2]
[349563131,1737297036030,-500.0,0.00019725,2]
[349563132,1737297036040,-500.0,0.00019725,2]
[349563133,1737297036053,-500.0,0.00019725,2]
[349563134,1737297036063,-431.7039869,0.00019725,2]
[349563135,1737297036073,-500.0,0.00019725,2]
[349563136,1737297036083,-500.0,0.00019725,2]
[349563137,1737297036093,-500.0,0.00019725,2]
[349563138,1737297036103,-466.25103638,0.00019725,2]
[349563139,1737297036113,-500.0,0.00019725,2]
[349563140,1737297036123,-500.0,0.00019725,2]
[349563141,1737297036132,-500.0,0.00019725,2]
[349563142,1737297036146,-500.0,0.00019725,2]
[349563143,1737297036156,-500.0,0.00019725,2]
[349563144,1737297036165,-500.0,0.00019725,2]
[349563145,1737297036174,-500.0,0.00019725,2]
[349563146,1737297036184,-185.54,0.00019725,2]
[349563147,1737297036193,-550.000015,0.00019725,2]
[349563148,1737297036203,-500.0,0.00019725,2]
[349563149,1737297036213,-500.0,0.00019725,2]
[349563150,1737297036222,-500.0,0.00019725,2]
[349563151,1737297036231,-500.0,0.00019725,2]
[349563152,1737297036240,-500.0,0.00019725,2]
[349563153,1737297036249,-500.0,0.00019725,2]
[349563154,1737297036259,-500.0,0.00019725,2]
[349563155,1737297036268,-1465.18,0.00019725,2]
[349563156,1737297036277,-510.91242949,0.00019725,2]
[349563157,1737297036287,-500.0,0.00019725,2]
[349563158,1737297036296,-157.30161,0.00019725,2]
[349563159,1737297036309,-500.0,0.00019725,2]
[349563160,1737297036319,-500.0,0.00019725,2]
[349563161,1737297036328,-500.0,0.00019725,2]
[349563162,1737297036338,-233.25710655,0.00019725,2]
[349563163,1737297036347,-500.0,0.00019725,2]
[349563165,1737297036357,-500.0,0.00019725,2]
[349563167,1737297036367,-514.9467934,0.00019725,2]
[349563169,1737297036376,-500.0,0.00019725,2]
[349563171,1737297036385,-500.0,0.00019725,2]
[349563172,1737297036394,-500.0,0.00019725,2]
[349563173,1737297036404,-500.0,0.00019725,2]
[349563175,1737297036413,-500.0,0.00019725,2]
[349563178,1737297036423,-500.0,0.00019725,2]
[349563179,1737297036432,-500.0,0.00019725,2]
[349563181,1737297036441,-500.0,0.00019725,2]
[349563183,1737297036451,-500.0,0.00019725,2]
[349563185,1737297036460,-344.42594496,0.00019725,2]
[349563187,1737297036470,-500.0,0.00019725,2]
[349563189,1737297036479,-500.0,0.00019725,2]
[349563191,1737297036489,-500.0,0.00019725,2]
[349563194,1737297036498,-504.62,0.00019725,2]
[349563195,1737297036507,-500.0,0.00019725,2]
[349563197,1737297036517,-536.40920119,0.00019725,2]
[349563199,1737297036526,-509.61316902,0.00019725,2]
[349563201,1737297036535,-500.0,0.00019725,2]
[349563203,1737297036544,-507.30507255,0.00019725,2]
[349563205,1737297036559,-500.0,0.00019725,2]
[349563207,1737297036568,-500.0,0.00019725,2]
[349563209,1737297036577,-500.0,0.00019725,2]
[349563211,1737297036586,-500.0,0.00019725,2]
[349563213,1737297036595,-500.0,0.00019725,2]
[349563215,1737297036604,-500.0,0.00019725,2]
[349563217,1737297036613,-500.0,0.00019725,2]
[349563219,1737297036623,-506.79229101,0.00019725,2]
[349563221,1737297036632,-606.79998615,0.00019725,2]
[349563223,1737297036642,-500.0,0.00019725,2]
[349563226,1737297036651,-267.807979,0.00019725,2]
[349563227,1737297036661,-500.0,0.00019725,2]
[349563230,1737297036671,-500.0,0.00019725,2]
[349563231,1737297036680,-500.0,0.00019725,2]
[349563233,1737297036690,-500.0,0.00019725,2]
[349563235,1737297036700,-500.0,0.00019725,2]
[349563237,1737297036709,-500.0,0.00019725,2]
[349563239,1737297036718,-500.0,0.00019725,2]
[349563241,1737297036727,-500.0,0.00019725,2]
[349563243,1737297036737,-500.0,0.00019725,2]
[349563245,1737297036747,-500.0,0.00019725,2]
[349563248,1737297036757,-500.0,0.00019725,2]
[349563250,1737297036766,-475.588485,0.00019725,2]
[349563252,1737297036775,-500.0,0.00019725,2]
[349563254,1737297036785,-500.0,0.00019725,2]
[349563256,1737297036795,-500.0,0.00019725,2]
[349563258,1737297036809,-647.49,0.00019725,2]
[349563260,1737297036819,-500.0,0.00019725,2]
[349563262,1737297036828,-500.0,0.00019725,2]
[349563264,1737297036839,-500.0,0.00019725,2]
[349563266,1737297036849,-150.0,0.00019725,2]
[349563268,1737297036858,-500.0,0.00019725,2]
[349563270,1737297036868,-500.0,0.00019725,2]
[349563271,1737297036877,-500.0,0.00019725,2]
[349563273,1737297036887,-500.0,0.00019725,2]
[349563275,1737297036897,-500.0,0.00019725,2]
[349563277,1737297036907,-500.0,0.00019725,2]
[349563279,1737297036916,-500.0,0.00019725,2]
[349563281,1737297036926,-500.0,0.00019725,2]
[349563283,1737297036936,-157.21113143,0.00019725,2]
[349563286,1737297036945,-472.57022668,0.00019725,2]
[349563287,1737297036955,-500.0,0.00019725,2]
[349563290,1737297036965,-506.618299,0.00019725,2]
[349563292,1737297036975,-575.8343519,0.00019725,2]
[349563294,1737297036984,-500.0,0.00019725,2]
[349563296,1737297036996,-500.0,0.00019725,2]
[349563297,1737297037006,-500.0,0.00019725,2]
[349563300,1737297037016,-500.0,0.00019725,2]
[349563301,1737297037025,-500.0,0.00019725,2]
[349563302,1737297037034,-500.0,0.00019725,2]
[349563303,1737297037043,-500.0,0.00019725,2]
[349563304,1737297037057,-500.0,0.00019725,2]
[349563305,1737297037067,-500.0,0.00019725,2]
[349563306,1737297037077,-500.0,0.00019725,2]
[349563307,1737297037087,-500.0,0.00019725,2]
[349563308,1737297037097,-500.0,0.00019725,2]
[349563309,1737297037107,-500.0,0.00019725,2]
[349563310,1737297037117,-500.0,0.00019725,2]
[349563311,1737297037127,-500.0,0.00019725,2]
[349563313,1737297037138,-500.0,0.00019725,2]
[349563315,1737297037149,-500.0,0.00019725,2]
[349563317,1737297037160,-500.0,0.00019725,2]
[349563319,1737297037175,-462.14,0.00019725,2]
[349563321,1737297037187,-500.0,0.00019725,2]
[349563323,1737297037199,-500.0,0.00019725,2]
[349563325,1737297037211,-500.0,0.00019725,2]
[349563327,1737297037221,-500.0,0.00019725,2]
[349563329,1737297037232,-500.0,0.00019725,2]
[349563331,1737297037245,-500.0,0.00019725,2]
[349563334,1737297037258,-500.0,0.00019725,2]
[349563336,1737297037269,-500.0,0.00019725,2]
[349563337,1737297037281,-500.0,0.00019725,2]
[349563339,1737297037293,-546.70669986,0.00019725,2]
[349563341,1737297037312,-500.0,0.00019725,2]
[349563344,1737297037325,-500.0,0.00019725,2]
[349563345,1737297037338,-960.31,0.00019725,2]
[349563348,1737297037352,-407.75797277,0.00019725,2]
[349563350,1737297037363,-500.0,0.00019725,2]
[349563352,1737297037375,-2914.22,0.00019725,2]
[349563354,1737297037388,-642.02,0.00019725,2]
[349563356,1737297037400,-1080.71,0.00019725,2]
[349563358,1737297037411,-500.0,0.00019725,2]
[349563359,1737297037421,-675.63,0.00019725,2]
[349563362,1737297037433,-675.62,0.00019725,2]
[349563363,1737297037443,-257.95926261,0.00019725,2]
[349563366,1737297037453,-1554.32,0.00019725,2]
[349563367,1737297037463,-500.0,0.00019725,2]
[349563369,1737297037474,-950.79,0.00019725,2]
[349563371,1737297037485,-500.0,0.00019725,2]
[349563374,1737297037496,-531.04,0.00019725,2]
[349563376,1737297037508,-500.0,0.00019725,2]
[349563377,1737297037518,-500.0,0.00019725,2]
[349563379,1737297037528,-500.0,0.00019725,2]
[349563382,1737297037539,-1112.84,0.00019725,2]
[349563385,1737297037556,-1029.94,0.00019725,2]
[349563387,1737297037567,-500.0,0.00019725,2]
[349563389,1737297037578,-500.0,0.00019725,2]
[349563392,1737297037589,-500.0,0.00019725,2]
[349563394,1737297037600,-500.0,0.00019725,2]
[349563398,1737297037611,-237.51263936,0.00019725,2]
[349563400,1737297037621,-500.0,0.00019725,2]
[349563402,1737297037631,-500.0,0.00019725,2]
[349563404,1737297037643,-500.0,0.00019725,2]
[349563406,1737297037653,-562.67,0.00019725,2]
[349563408,1737297037664,-500.0,0.00019725,2]
[349563410,1737297037676,-500.0,0.00019725,2]
[349563412,1737297037687,-500.0,0.00019725,2]
[349563414,1737297037698,-500.0,0.00019725,2]
[349563416,1737297037710,-500.0,0.00019725,2]
[349563418,1737297037721,-627.94,0.00019725,2]
[349563420,1737297037732,-500.0,0.00019725,2]
[349563422,1737297037742,-988.26,0.00019725,2]
[349563424,1737297037753,-500.0,0.00019725,2]
[349563426,1737297037764,-767.92,0.00019725,2]
[349563428,1737297037775,-500.0,0.00019725,2]
[349563430,1737297037787,-500.0,0.00019725,2]
[349563432,1737297037797,-500.0,0.00019725,2]
[349563434,1737297037813,-1345.32,0.00019725,2]
[349563436,1737297037823,-500.0,0.00019725,2]
[349563439,1737297037834,-500.0,0.00019725,2]
[349563441,1737297037844,-500.0,0.00019725,2]
[349563442,1737297037855,-500.0,0.00019725,2]
[349563444,1737297037866,-501.13832604,0.00019725,2]
[349563447,1737297037877,-500.0,0.00019725,2]
[349563449,1737297037887,-542.2,0.00019725,2]
[349563451,1737297037898,-580.91,0.00019725,2]
[349563453,1737297037908,-500.0,0.00019725,2]
[349563455,1737297037918,-555.56,0.00019725,2]
[349563457,1737297037929,-500.0,0.00019725,2]
[349563459,1737297037939,-500.0,0.00019725,2]
[349563461,1737297037949,-766.47,0.00019725,2]
[349563463,1737297037960,-575.81148993,0.00019725,2]
[349563464,1737297037971,-573.09,0.00019725,2]
[349563467,1737297037982,-500.0,0.00019725,2]
[349563469,1737297037993,-500.0,0.00019725,2]
[349563471,1737297038005,-162.41122496,0.00019725,2]
[349563473,1737297038017,-500.0,0.00019725,2]
[349563474,1737297038028,-512.48,0.00019725,2]
[349563476,1737297038040,-1534.11,0.00019725,2]
[349563478,1737297038054,-813.94,0.00019725,2]
[349563480,1737297038065,-798.62,0.00019725,2]
[349563482,1737297038076,-1191.37358276,0.00019725,2]
[349563486,1737297038099,-28.31641724,0.00019725,2]
[349563488,1737297038110,-500.0,0.00019725,2]
[349563489,1737297038121,-500.0,0.00019725,2]
[349563491,1737297038133,-500.0,0.00019725,2]
[349563494,1737297038148,-1059.51,0.00019725,2]
[349563495,1737297038164,-472.1321824,0.00019725,2]
[349563498,1737297038179,-27.8678176,0.00019725,2]
[349563500,1737297038190,-500.0,0.00019725,2]
[349563502,1737297038200,-500.0,0.00019725,2]
[349563504,1737297038212,-500.0,0.00019725,2]
[349563505,1737297038223,-500.0,0.00019725,2]
[349563508,1737297038234,-500.0,0.00019725,2]
[349563510,1737297038246,-836.41,0.00019725,2]
[349563511,1737297038258,-500.0,0.00019725,2]
[349563513,1737297038269,-500.0,0.00019725,2]
[349563516,1737297038282,-476.2221824,0.00019725,2]
[349563518,1737297038296,-1533.0678176,0.00019725,2]
[349563520,1737297038312,-500.0,0.00019725,2]
[349563522,1737297038323,-500.0,0.00019725,2]
[349563524,1737297038333,-500.0,0.00019725,2]
[349563526,1737297038343,-500.0,0.00019725,2]
[349563528,1737297038353,-500.0,0.00019725,2]
[349563530,1737297038364,-1977.7,0.00019725,2]
[349563532,1737297038374,-1071.83218236,0.00019725,2]
[349563534,1737297038386,-906.22781764,0.00019725,2]
[349563536,1737297038396,-800.83,0.00019725,2]
[349563538,1737297038405,-500.0,0.00019725,2]
[349563540,1737297038418,-500.0,0.00019725,2]
[349563542,1737297038429,-2635.49,0.00019725,2]
[349563544,1737297038439,-691.78,0.00019725,2]
[349563546,1737297038449,-500.0,0.00019725,2]
[349563548,1737297038459,-500.0,0.00019725,2]
[349563550,1737297038469,-500.0,0.00019725,2]
[349563552,1737297038480,-500.0,0.00019725,2]
[349563554,1737297038490,-500.0,0.00019725,2]
[349563556,1737297038500,-500.0,0.00019725,2]
[349563558,1737297038511,-4047.21,0.00019725,2]
[349563560,1737297038521,-500.0,0.00019725,2]
[349563563,1737297038530,-500.0,0.00019725,2]
[349563566,1737297038543,-529.81,0.00019725,2]
[349563568,1737297038557,-500.0,0.00019725,2]
[349563570,1737297038567,-500.0,0.00019725,2]
[349563572,1737297038577,-275.83461059,0.00019725,2]
[349563574,1737297038586,-500.0,0.00019725,2]
[349563576,1737297038596,-500.0,0.00019725,2]
[349563578,1737297038606,-500.0,0.00019725,2]
[349563580,1737297038615,-500.0,0.00019725,2]
[349563582,1737297038626,-513.23,0.00019725,2]
[349563584,1737297038637,-500.0,0.00019725,2]
[349563586,1737297038647,-500.0,0.00019725,2]
[349563588,1737297038656,-922.3,0.00019725,2]
[349563590,1737297038666,-500.0,0.00019725,2]
[349563592,1737297038676,-4552.87,0.00019725,2]
[349563594,1737297038686,-500.0,0.00019725,2]
[349563596,1737297038694,-643.63,0.00019725,2]
[349563598,1737297038704,-500.0,0.00019725,2]
[349563600,1737297038714,-500.0,0.00019725,2]
[349563602,1737297038723,-500.0,0.00019725,2]
[349563604,1737297038733,-500.0,0.00019725,2]
[349563606,1737297038743,-500.0,0.00019725,2]
[349563608,1737297038752,-500.0,0.00019725,2]
[349563610,1737297038763,-558.78,0.00019725,2]
[349563612,1737297038773,-683.47,0.00019725,2]
[349563614,1737297038782,-500.0,0.00019725,2]
[349563616,1737297038792,-500.0,0.00019725,2]
[349563618,1737297038807,-871.01,0.00019725,2]
[349563620,1737297038817,-500.0,0.00019725,2]
[349563622,1737297038828,-525.32,0.00019725,2]
[349563624,1737297038839,-500.0,0.00019725,2]
[349563626,1737297038849,-500.0,0.00019725,2]
[349563628,1737297038859,-500.0,0.00019725,2]
[349563630,1737297038870,-988.6,0.00019725,2]
[349563632,1737297038880,-500.0,0.00019725,2]
[349563634,1737297038891,-500.0,0.00019725,2]
[349563636,1737297038901,-503.13,0.00019725,2]
[349563638,1737297038911,-3769.81,0.00019725,2]
[349563640,1737297038922,-1181.73,0.00019725,2]
[349563642,1737297038933,-753.13,0.00019725,2]
[349563644,1737297038945,-500.0,0.00019725,2]
[349563646,1737297038956,-2169.36,0.00019725,2]
[349563649,1737297038969,-500.0,0.00019725,2]
[349563651,1737297038981,-500.0,0.00019725,2]
[349563653,1737297038994,-500.0,0.00019725,2]
[349563656,1737297039006,-500.0,0.00019725,2]
[349563658,1737297039019,-500.0,0.00019725,2]
[349563660,1737297039031,-500.0,0.00019725,2]
[349563662,1737297039044,-500.0,0.00019725,2]
[349563664,1737297039060,-500.0,0.00019725,2]
[349563666,1737297039072,-500.0,0.00019725,2]
[349563668,1737297039084,-715.79,0.00019725,2]
[349563671,1737297039098,-500.0,0.00019725,2]
[349563673,1737297039111,-500.0,0.00019725,2]
[349563675,1737297039123,-500.0,0.00019725,2]
[349563677,1737297039138,-770.14,0.00019725,2]
[349563679,1737297039151,-505.49,0.00019725,2]
[349563681,1737297039163,-500.0,0.00019725,2]
[349563683,1737297039176,-500.0,0.00019725,2]
[349563686,1737297039190,-500.0,0.00019726,2]
[349563688,1737297039203,-500.0,0.00019726,2]
[349563690,1737297039215,-500.0,0.00019726,2]
[349563692,1737297039227,-594.73,0.00019726,2]
[349563694,1737297039239,-500.0,0.00019726,2]
[349563696,1737297039252,-500.0,0.00019726,2]
[349563699,1737297039264,-500.0,0.00019726,2]
[349563701,1737297039274,-294.23269774,0.00019726,2]
[349563703,1737297039284,-500.0,0.00019726,2]
[349563705,1737297039294,-500.0,0.00019726,2]
[349563707,1737297039312,-500.0,0.00019726,2]
[349563709,1737297039325,-500.0,0.00019726,2]
[349563711,1737297039337,-500.0,0.00019726,2]
[349563714,1737297039348,-445.1796268,0.00019726,2]
[349563716,1737297039361,-500.0,0.00019726,2]
[349563718,1737297039372,-894.29,0.00019726,2]
[349563720,1737297039383,-670.15,0.000198,2]
[349563722,1737297039395,-593.76315131,0.000199,7]
[349563724,1737297039407,-203.94393132,0.000199,2]
[349563726,1737297039418,-250.0,0.00019951,2]
[349563729,1737297039429,-500.0,0.00019998,2]
[349563731,1737297039440,-500.0,0.00019998,2]
[349563733,1737297039451,-500.0,0.00019998,2]
[349563735,1737297039462,-564.97,0.00019998,2]
[349563737,1737297039474,-500.0,0.00019998,2]
[349563740,1737297039485,-500.0,0.00019998,2]
[349563742,1737297039496,-888.79,0.00019998,2]
[349563745,1737297039508,-513.62,0.00019998,2]
[349563746,1737297039519,-1454.93,0.00019998,2]
[349563747,1737297039530,-778.47,0.00019998,2]
[349563748,1737297039541,-1218.41,0.00019998,2]
[349563749,1737297039554,-1427.49,0.00019998,2]
[349563750,1737297039564,-500.0,0.00019998,2]
[349563751,1737297039576,-610.78,0.00019998,2]
[349563752,1737297039587,-699.01,0.00019998,2]
[349563754,1737297039598,-500.0,0.00019998,2]
[349563756,1737297039608,-1351.91,0.00019998,2]
[349563758,1737297039619,-1249.63,0.00019998,2]
[349563760,1737297039631,-500.0,0.00019998,2]
[349563762,1737297039642,-500.0,0.00019998,2]
[349563764,1737297039654,-500.0,0.00019998,2]
[349563765,1737297039666,-2627.85,0.00019998,2]
[349563766,1737297039677,-969.05,0.00019998,2]
[349563767,1737297039688,-500.0,0.00019998,2]
[349563768,1737297039698,-620.96,0.00019998,2]
[349563769,1737297039709,-500.0,0.00019998,2]
[349563771,1737297039719,-500.0,0.00019999,2]
[349563772,1737297039729,-500.0,0.00019999,2]
[349563773,1737297039739,-500.0,0.00019999,2]
[349563775,1737297039749,-500.0,0.00019999,2]
[349563777,1737297039765,-500.0,0.00019999,2]
[349563779,1737297039776,-500.0,0.00019999,2]
[349563782,1737297039786,-500.0,0.00019999,2]
[349563783,1737297039797,-500.0,0.00019999,2]
[349563784,1737297039813,-614.463569,0.00019999,2]
[349563785,1737297039825,-191.12063825,0.00019999,2]
[349563786,1737297039835,-500.0,0.00019999,2]
[349563787,1737297039845,-500.0,0.00019999,2]
[349563788,1737297039855,-309.55830001,0.00019999,2]
[349563789,1737297039865,-549.93750262,0.00019999,2]
[349563790,1737297039875,-500.0,0.00019999,2]
[349563791,1737297039886,-500.0,0.00019999,2]
[349563792,1737297039897,-500.0,0.00019999,2]
[349563793,1737297039908,-416.5028028,0.00019999,2]
[349563795,1737297039919,-519.34625926,0.00019999,2]
[349563798,1737297039932,-500.0,0.00019999,2]
[349563800,1737297039944,-500.0,0.00019999,2]
[349563802,1737297039955,-500.0,0.00019999,2]
[349563804,1737297039966,-500.0,0.00019999,2]
[349563806,1737297039976,-500.0,0.00019999,2]
[349563807,1737297039986,-534.51993967,0.00019999,2]
[349563808,1737297039996,-500.0,0.00019999,2]
[349563809,1737297040006,-433.81992332,0.00019999,2]
[349563810,1737297040016,-80.103909,0.00019999,2]
[349563811,1737297040259,-419.896091,0.00019999,2]
[349563812,1737297040270,-500.0,0.00019999,2]
[349563813,1737297040281,-500.0,0.00019999,2]
[349563814,1737297040292,-500.0,0.00019999,2]
[349563815,1737297040307,-500.0,0.00019999,2]
[349563816,1737297040318,-500.0,0.00019999,2]
[349563817,1737297040330,-517.55481756,0.00019999,2]
[349563818,1737297040340,-258.36157831,0.00019999,2]
[349563819,1737297040350,-500.0,0.00019999,2]
[349563820,1737297040361,-200.0,0.00019999,2]
[349563821,1737297040371,-500.0,0.00019999,2]
[349563822,1737297040381,-500.0,0.00019999,2]
[349563823,1737297040392,-341.4499531,0.00019999,2]
[349563824,1737297040403,-500.0,0.00019999,2]
[349563825,1737297040413,-500.0,0.00019999,2]
[349563826,1737297040423,-500.0,0.00019999,2]
[349563827,1737297040433,-193.36504313,0.00019999,2]
[349563828,1737297040443,-500.0,0.00019999,2]
[349563829,1737297040453,-500.0,0.00019999,2]
[349563830,1737297040463,-500.0,0.00019999,2]
[349563831,1737297040473,-500.0,0.00019999,2]
[349563832,1737297040484,-500.0,0.00019999,2]
[349563833,1737297040495,-500.0,0.00019999,2]
[349563834,1737297040505,-500.0,0.00019999,2]
[349563835,1737297040515,-500.0,0.00019999,2]
[349563836,1737297040526,-500.0,0.00019999,2]
[349563837,1737297040536,-500.0,0.00019999,2]
[349563838,1737297040546,-500.0,0.00019999,2]
[349563839,1737297040563,-500.0,0.00019999,2]
[349563840,1737297040573,-500.0,0.00019999,2]
[349563841,1737297040584,-500.0,0.00019999,2]
[349563842,1737297040594,-500.0,0.00019999,2]
[349563843,1737297040604,-500.0,0.00019999,2]
[349563844,1737297040614,-1465.18,0.00019999,2]
[349563845,1737297040624,-500.0,0.00019999,2]
[349563846,1737297040634,-500.0,0.00019999,2]
[349563847,1737297040644,-500.0,0.00019999,2]
[349563848,1737297040656,-500.0,0.00019999,2]
[349563849,1737297040666,-500.0,0.00019999,2]
[349563850,1737297040677,-500.0,0.00019999,2]
[349563851,1737297040687,-500.0,0.00019999,2]
[349563852,1737297040698,-500.0,0.00019999,2]
[349563853,1737297040709,-500.0,0.00019999,2]
[349563854,1737297040719,-500.0,0.00019999,2]
[349563855,1737297040729,-327.80854993,0.00019999,2]
[349563856,1737297040740,-500.0,0.00019999,2]
[349563857,1737297040751,-500.0,0.00019999,2]
[349563858,1737297040761,-504.62,0.00019999,2]
[349563859,1737297040772,-500.0,0.00019999,2]
[349563860,1737297040783,-500.0,0.00019999,2]
[349563861,1737297040794,-500.0,0.00019999,2]
[349563862,1737297040807,-500.0,0.00019999,2]
[349563863,1737297040818,-500.0,0.00019999,2]
[349563864,1737297040830,-500.0,0.00019999,2]
[349563865,1737297040841,-500.0,0.00019999,2]
[349563866,1737297040852,-267.807979,0.00019999,2]
[349563867,1737297040862,-500.0,0.00019999,2]
[349563868,1737297040872,-500.0,0.00019999,2]
[349563869,1737297040882,-500.0,0.00019999,2]
[349563870,1737297040892,-500.0,0.00019999,2]
[349563871,1737297040903,-475.588485,0.00019999,2]
[349563872,1737297040913,-500.0,0.00019999,2]
[349563873,1737297040925,-649.79125935,0.00019999,2]
[349563874,1737297040936,-500.0,0.00019999,2]
[349563875,1737297040947,-500.0,0.00019999,2]
[349563876,1737297040956,-500.0,0.00019999,2]
[349563877,1737297040966,-500.0,0.00019999,2]
[349563878,1737297040976,-500.0,0.00019999,2]
[349563879,1737297040986,-500.0,0.00019999,2]
[349563880,1737297040996,-500.0,0.00019999,2]
[349563881,1737297041007,-582.56287693,0.00019999,2]
[349563882,1737297041017,-500.0,0.00019999,2]
[349563883,1737297041027,-500.0,0.00019999,2]
[349563884,1737297041040,-333.34637428,0.00019999,2]
[349563885,1737297041052,-500.0,0.00019999,2]
[349563886,1737297041062,-500.0,0.00019999,2]
[349563887,1737297041072,-500.0,0.00019999,2]
[349563888,1737297041082,-500.0,0.00019999,2]
[349563889,1737297041092,-500.0,0.00019999,2]
[349563890,1737297041103,-500.0,0.00019999,2]
[349563891,1737297041113,-500.0,0.00019999,2]
[349563892,1737297041123,-500.0,0.00019999,2]
[349563893,1737297041134,-500.0,0.00019999,2]
[349563894,1737297041144,-500.0,0.00019999,2]
[349563895,1737297041155,-183.34983656,0.00019999,2]
[349563896,1737297041169,-960.31,0.00019999,2]
[349563897,1737297041179,-500.0,0.00019999,2]
[349563898,1737297041191,-2914.22,0.00019999,2]
[349563899,1737297041201,-642.02,0.00019999,2]
[349563900,1737297041211,-1080.71,0.00019999,2]
[349563901,1737297041221,-500.0,0.00019999,2]
[349563902,1737297041231,-675.63,0.00019999,2]
[349563903,1737297041241,-1554.32,0.00019999,2]
[349563904,1737297041252,-950.79,0.00019999,2]
[349563905,1737297041262,-500.0,0.00019999,2]
[349563906,1737297041274,-531.04,0.00019999,2]
[349563907,1737297041283,-500.0,0.00019999,2]
[349563908,1737297041293,-500.0,0.00019999,2]
[349563909,1737297041307,-500.0,0.00019999,2]
[349563910,1737297041319,-1112.84,0.00019999,2]
[349563911,1737297041329,-1029.94,0.00019999,2]
[349563912,1737297041340,-500.0,0.00019999,2]
[349563913,1737297041350,-500.0,0.00019999,2]
[349563914,1737297041360,-500.0,0.00019999,2]
[349563915,1737297041371,-500.0,0.00019999,2]
[349563916,1737297041381,-500.0,0.00019999,2]
[349563917,1737297041391,-562.67,0.00019999,2]
[349563918,1737297041401,-500.0,0.00019999,2]
[349563919,1737297041411,-500.0,0.00019999,2]
[349563920,1737297041421,-500.0,0.00019999,2]
[349563921,1737297041431,-500.0,0.00019999,2]
[349563922,1737297041441,-500.0,0.00019999,2]
[349563923,1737297041450,-627.94,0.00019999,2]
[349563924,1737297041459,-500.0,0.00019999,2]
[349563925,1737297041468,-988.26,0.00019999,2]
[349563926,1737297041478,-767.92,0.00019999,2]
[349563927,1737297041487,-500.0,0.00019999,2]
[349563928,1737297041496,-1345.32,0.00019999,2]